[Event "*** Titled Tuesday Blitz"]
[Site "Chess.com"]
[Date "2020.05.12"]
[Round "7"]
[White "PavelShkapenko"]
[Black "kingofthenil"]
[Result "1-0"]
[WhiteElo "2642"]
[BlackElo "2469"]
[TimeControl "180+1"]
[EndTime "11:16:46 PDT"]
[Termination "PavelShkapenko won on time"]

1. e4 {[%clk 0:02:51.5]} 1... Nc6 {[%clk 0:02:58.3]} 2. Nf3 {[%clk 0:02:50.6]}
2... d5 {[%clk 0:02:54.4]} 3. exd5 {[%clk 0:02:49.2]} 3... Qxd5 {[%clk
0:02:55.3]} 4. d4 {[%clk 0:02:49.6]} 4... Bg4 {[%clk 0:02:54.8]} 5. Be2 {[%clk
0:02:49.6]} 5... O-O-O {[%clk 0:02:54.6]} 6. Be3 {[%clk 0:02:47.1]} 6... e5
{[%clk 0:02:44.8]} 7. dxe5 {[%clk 0:02:47.1]} 7... Qxd1+ {[%clk 0:02:43.9]} 8.
Bxd1 {[%clk 0:02:47.6]} 8... Nxe5 {[%clk 0:02:44.7]} 9. Nbd2 {[%clk 0:02:47.8]}
9... Nxf3+ {[%clk 0:02:40.1]} 10. Bxf3 {[%clk 0:02:48.2]} 10... Bxf3 {[%clk
0:02:38]} 11. Nxf3 {[%clk 0:02:47.8]} 11... Nf6 {[%clk 0:02:37.4]} 12. Ne5
{[%clk 0:02:46.1]} 12... Bb4+ {[%clk 0:02:09]} 13. c3 {[%clk 0:02:44.7]} 13...
Rhe8 {[%clk 0:02:09.1]} 14. Nxf7 {[%clk 0:02:41.5]} 14... Rd7 {[%clk 0:02:08.5]}
15. cxb4 {[%clk 0:02:26.2]} 15... Rxf7 {[%clk 0:02:07.5]} 16. O-O {[%clk
0:02:26.6]} 16... Nd5 {[%clk 0:02:04.5]} 17. Bd2 {[%clk 0:02:03.2]} 17... Re2
{[%clk 0:02:01.7]} 18. Rad1 {[%clk 0:02:03.1]} 18... Rd7 {[%clk 0:01:55.2]} 19.
Rfe1 {[%clk 0:01:50.2]} 19... Rxe1+ {[%clk 0:01:46.4]} 20. Rxe1 {[%clk
0:01:50.3]} 20... b5 {[%clk 0:01:42.3]} 21. g3 {[%clk 0:01:32.9]} 21... Kb7
{[%clk 0:01:40.5]} 22. Kg2 {[%clk 0:01:26]} 22... a6 {[%clk 0:01:09.3]} 23. h4
{[%clk 0:01:24.6]} 23... Nb6 {[%clk 0:00:57.8]} 24. Bc3 {[%clk 0:01:22.6]} 24...
Na4 {[%clk 0:00:57]} 25. Re2 {[%clk 0:01:10]} 25... c5 {[%clk 0:00:32.2]} 26.
bxc5 {[%clk 0:01:02.9]} 26... Nxc3 {[%clk 0:00:30.1]} 27. bxc3 {[%clk
0:01:02.7]} 27... Kc6 {[%clk 0:00:23.9]} 28. Re6+ {[%clk 0:01:02.2]} 28... Kxc5
{[%clk 0:00:21.6]} 29. Rxa6 {[%clk 0:01:02.7]} 29... Rc7 {[%clk 0:00:22.3]} 30.
Ra3 {[%clk 0:00:43.9]} 30... Kc4 {[%clk 0:00:21.9]} 31. Kf3 {[%clk 0:00:41.6]}
31... Rf7+ {[%clk 0:00:16.4]} 32. Ke2 {[%clk 0:00:41.2]} 32... Re7+ {[%clk
0:00:16.6]} 33. Kd2 {[%clk 0:00:38.3]} 33... Rd7+ {[%clk 0:00:16.4]} 34. Ke2
{[%clk 0:00:38.3]} 34... Rf7 {[%clk 0:00:17.3]} 35. f4 {[%clk 0:00:32]} 35...
Re7+ {[%clk 0:00:17.3]} 36. Kf3 {[%clk 0:00:32.1]} 36... Rd7 {[%clk 0:00:18.2]}
37. Ke4 {[%clk 0:00:27.6]} 37... h5 {[%clk 0:00:08.3]} 38. Kf5 {[%clk
0:00:21.9]} 38... Rd5+ {[%clk 0:00:06]} 39. Kg6 {[%clk 0:00:20.8]} 39... Rd7
{[%clk 0:00:01.7]} 40. Kxh5 {[%clk 0:00:20.3]} 40... Rd3 {[%clk 0:00:01.7]} 41.
g4 {[%clk 0:00:20]} 1-0

[Event "*** Titled Tuesday Blitz"]
[Site "Chess.com"]
[Date "2020.05.12"]
[Round "7"]
[White "nonsopolo1"]
[Black "dolynachess"]
[Result "1-0"]
[WhiteElo "2202"]
[BlackElo "2353"]
[TimeControl "180+1"]
[EndTime "11:16:46 PDT"]
[Termination "nonsopolo1 won by resignation"]

1. e4 {[%clk 0:03:00.7]} 1... c5 {[%clk 0:02:57.1]} 2. Nf3 {[%clk 0:03:00.5]}
2... d6 {[%clk 0:02:56.7]} 3. d4 {[%clk 0:03:00.3]} 3... cxd4 {[%clk 0:02:56.6]}
4. Nxd4 {[%clk 0:03:01.2]} 4... Nf6 {[%clk 0:02:56.8]} 5. Nc3 {[%clk 0:03:01.8]}
5... a6 {[%clk 0:02:55.6]} 6. Bg5 {[%clk 0:03:02]} 6... e6 {[%clk 0:02:53.8]} 7.
f4 {[%clk 0:03:01.8]} 7... Nbd7 {[%clk 0:02:53.3]} 8. Qf3 {[%clk 0:03:01.5]}
8... Qc7 {[%clk 0:02:42.7]} 9. O-O-O {[%clk 0:03:01.3]} 9... b5 {[%clk
0:02:42.1]} 10. e5 {[%clk 0:02:52.6]} 10... Bb7 {[%clk 0:02:40.9]} 11. Qh3
{[%clk 0:02:52.3]} 11... dxe5 {[%clk 0:02:40.7]} 12. Nxe6 {[%clk 0:02:36.8]}
12... fxe6 {[%clk 0:02:41.6]} 13. Qxe6+ {[%clk 0:02:37.2]} 13... Be7 {[%clk
0:02:41.8]} 14. Bxb5 {[%clk 0:02:36.4]} 14... axb5 {[%clk 0:02:41.2]} 15. Nxb5
{[%clk 0:02:11.4]} 15... Qc6 {[%clk 0:02:36.2]} 16. Nd6+ {[%clk 0:02:07.2]}
16... Kd8 {[%clk 0:02:32.8]} 17. fxe5 {[%clk 0:01:53.6]} 17... Nd5 {[%clk
0:01:10.9]} 18. Bxe7+ {[%clk 0:01:22.1]} 18... Nxe7 {[%clk 0:01:09.3]} 19. Nxb7+
{[%clk 0:01:21.6]} 19... Qxb7 {[%clk 0:01:06.5]} 20. Rxd7+ {[%clk 0:01:21.1]}
20... Qxd7 {[%clk 0:01:06.6]} 21. Rd1 {[%clk 0:01:20.8]} 21... Ra7 {[%clk
0:00:49.7]} 22. Qb6+ {[%clk 0:01:15.3]} 22... Ke8 {[%clk 0:00:44.3]} 23. Rxd7
{[%clk 0:01:08.2]} 23... Rxd7 {[%clk 0:00:43.8]} 24. e6 {[%clk 0:01:04.2]} 24...
Rd8 {[%clk 0:00:43.8]} 25. a4 {[%clk 0:00:55.1]} 25... h5 {[%clk 0:00:43.5]} 26.
a5 {[%clk 0:00:47.7]} 26... Nd5 {[%clk 0:00:39.3]} 27. Qb7 {[%clk 0:00:44.4]}
27... Rf8 {[%clk 0:00:33]} 28. a6 {[%clk 0:00:36.1]} 28... Nb6 {[%clk
0:00:13.5]} 29. b3 {[%clk 0:00:31.6]} 29... Na8 {[%clk 0:00:12.2]} 30. Kb2
{[%clk 0:00:30.7]} 30... Rf6 {[%clk 0:00:12]} 31. e7 {[%clk 0:00:28.3]} 31...
Rd7 {[%clk 0:00:09]} 32. Qxa8+ {[%clk 0:00:27.8]} 32... Kxe7 {[%clk 0:00:09.9]}
33. a7 {[%clk 0:00:26.6]} 33... Ra6 {[%clk 0:00:08.3]} 34. Qe4+ {[%clk
0:00:25.7]} 1-0

[Event "*** Titled Tuesday Blitz"]
[Site "Chess.com"]
[Date "2020.05.12"]
[Round "7"]
[White "GianmarcoVaR"]
[Black "GrafLermontov"]
[Result "0-1"]
[WhiteElo "2531"]
[BlackElo "2387"]
[TimeControl "180+1"]
[EndTime "11:16:50 PDT"]
[Termination "GrafLermontov won by resignation"]

1. c4 {[%clk 0:02:40.3]} 1... c5 {[%clk 0:02:58.5]} 2. Nc3 {[%clk 0:02:39.2]}
2... Nc6 {[%clk 0:02:59]} 3. g3 {[%clk 0:02:39.1]} 3... g6 {[%clk 0:02:59.5]} 4.
Bg2 {[%clk 0:02:39]} 4... Bg7 {[%clk 0:03:00.2]} 5. d3 {[%clk 0:02:36]} 5... e5
{[%clk 0:02:59.9]} 6. Nf3 {[%clk 0:02:34.1]} 6... d6 {[%clk 0:03:00]} 7. O-O
{[%clk 0:02:34.2]} 7... Nge7 {[%clk 0:03:00.1]} 8. Rb1 {[%clk 0:02:08.5]} 8...
O-O {[%clk 0:02:59.3]} 9. a3 {[%clk 0:02:08]} 9... a5 {[%clk 0:02:59.2]} 10. Ne1
{[%clk 0:02:01.9]} 10... Be6 {[%clk 0:02:59]} 11. Nd5 {[%clk 0:01:49.9]} 11...
f5 {[%clk 0:02:54.9]} 12. Bg5 {[%clk 0:01:43.9]} 12... h6 {[%clk 0:02:53.5]} 13.
Bxe7 {[%clk 0:01:40.8]} 13... Nxe7 {[%clk 0:02:53.5]} 14. Nxe7+ {[%clk
0:01:36.7]} 14... Qxe7 {[%clk 0:02:54.4]} 15. Nc2 {[%clk 0:01:34.5]} 15... Rab8
{[%clk 0:02:52.2]} 16. b4 {[%clk 0:01:12.8]} 16... axb4 {[%clk 0:02:52]} 17.
axb4 {[%clk 0:01:12.1]} 17... b5 {[%clk 0:02:25]} 18. bxc5 {[%clk 0:00:36.3]}
18... bxc4 {[%clk 0:02:22.9]} 19. dxc4 {[%clk 0:00:35.9]} 19... Rxb1 {[%clk
0:02:11.6]} 20. Qxb1 {[%clk 0:00:31.3]} 20... Bxc4 {[%clk 0:02:04]} 21. Ne3
{[%clk 0:00:23.7]} 21... Be6 {[%clk 0:01:57.4]} 22. c6 {[%clk 0:00:23.9]} 22...
e4 {[%clk 0:01:53.5]} 23. Rc1 {[%clk 0:00:22.3]} 23... Rc8 {[%clk 0:01:51.5]}
24. g4 {[%clk 0:00:21.8]} 24... d5 {[%clk 0:01:45.3]} 25. gxf5 {[%clk
0:00:21.7]} 25... gxf5 {[%clk 0:01:46.2]} 26. Bh3 {[%clk 0:00:20]} 26... f4
{[%clk 0:01:24.1]} 27. Bxe6+ {[%clk 0:00:07.2]} 27... Qxe6 {[%clk 0:01:25]} 28.
Ng2 {[%clk 0:00:07]} 28... f3 {[%clk 0:01:18.9]} 29. exf3 {[%clk 0:00:07]} 29...
exf3 {[%clk 0:01:19.8]} 30. Ne3 {[%clk 0:00:07.2]} 30... d4 {[%clk 0:00:51.4]}
31. Qf5 {[%clk 0:00:06.3]} 31... Rxc6 {[%clk 0:00:44.1]} 32. Qxe6+ {[%clk
0:00:02.6]} 32... Rxe6 {[%clk 0:00:45]} 33. Nf5 {[%clk 0:00:01.7]} 33... d3
{[%clk 0:00:33.8]} 34. Nxg7 {[%clk 0:00:02.3]} 34... Kxg7 {[%clk 0:00:31.9]} 35.
Kf1 {[%clk 0:00:02.5]} 35... d2 {[%clk 0:00:23.1]} 36. Rd1 {[%clk 0:00:02.7]}
36... Re2 {[%clk 0:00:23.6]} 37. Ra1 {[%clk 0:00:02.6]} 37... Kg6 {[%clk
0:00:24]} 38. Ra6+ {[%clk 0:00:01.9]} 38... Kg5 {[%clk 0:00:24.5]} 39. Ra5+
{[%clk 0:00:02.3]} 39... Kg4 {[%clk 0:00:25]} 40. Ra4+ {[%clk 0:00:02.1]} 40...
Kh3 {[%clk 0:00:25.1]} 41. Ra1 {[%clk 0:00:02.1]} 41... Kxh2 {[%clk 0:00:24.9]}
42. Rd1 {[%clk 0:00:01.1]} 42... Re1+ {[%clk 0:00:23.3]} 43. Rxe1 {[%clk
0:00:01.3]} 43... dxe1=Q+ {[%clk 0:00:24.2]} 44. Kxe1 {[%clk 0:00:01.9]} 44...
Kg2 {[%clk 0:00:24.9]} 0-1

[Event "*** Titled Tuesday Blitz"]
[Site "Chess.com"]
[Date "2020.05.12"]
[Round "7"]
[White "ChessQueen"]
[Black "igorcadilhac"]
[Result "1-0"]
[WhiteElo "2611"]
[BlackElo "2341"]
[TimeControl "180+1"]
[EndTime "11:16:50 PDT"]
[Termination "ChessQueen won by resignation"]

1. Nf3 {[%clk 0:03:00.9]} 1... d5 {[%clk 0:02:58.4]} 2. g3 {[%clk 0:03:00.4]}
2... e6 {[%clk 0:02:58.9]} 3. Bg2 {[%clk 0:02:59.4]} 3... Nf6 {[%clk 0:02:59.8]}
4. O-O {[%clk 0:02:59]} 4... Be7 {[%clk 0:03:00.4]} 5. c4 {[%clk 0:02:58.6]}
5... O-O {[%clk 0:03:01.3]} 6. b3 {[%clk 0:02:55.7]} 6... c5 {[%clk 0:02:54.6]}
7. Bb2 {[%clk 0:02:52.7]} 7... d4 {[%clk 0:02:54.2]} 8. b4 {[%clk 0:02:48]} 8...
Nc6 {[%clk 0:02:49.8]} 9. b5 {[%clk 0:02:48.1]} 9... Nb8 {[%clk 0:02:45.2]} 10.
e3 {[%clk 0:02:46.4]} 10... dxe3 {[%clk 0:02:41.7]} 11. fxe3 {[%clk 0:02:40.9]}
11... Nbd7 {[%clk 0:02:34.8]} 12. d4 {[%clk 0:02:33.8]} 12... Qc7 {[%clk
0:02:29.2]} 13. Nbd2 {[%clk 0:02:32.6]} 13... Rd8 {[%clk 0:02:27.6]} 14. Qe2
{[%clk 0:02:30.4]} 14... Nb6 {[%clk 0:02:21]} 15. a4 {[%clk 0:02:29.7]} 15...
Bd7 {[%clk 0:01:55.6]} 16. a5 {[%clk 0:02:26.9]} 16... Nc8 {[%clk 0:01:55.7]}
17. a6 {[%clk 0:02:25.4]} 17... bxa6 {[%clk 0:01:40.6]} 18. Rxa6 {[%clk
0:02:22.5]} 18... Rb8 {[%clk 0:01:20.6]} 19. Ne5 {[%clk 0:02:19.6]} 19... Be8
{[%clk 0:01:19.7]} 20. g4 {[%clk 0:02:16.4]} 20... Rb6 {[%clk 0:01:08.6]} 21.
Raa1 {[%clk 0:01:52.5]} 21... Bd6 {[%clk 0:01:02.5]} 22. Ndf3 {[%clk 0:01:32.3]}
22... Ne7 {[%clk 0:00:53.3]} 23. Bc3 {[%clk 0:01:21.8]} 23... Ng6 {[%clk
0:00:42.5]} 24. Ba5 {[%clk 0:01:02.5]} 24... Nxe5 {[%clk 0:00:41.4]} 25. dxe5
{[%clk 0:01:02.6]} 25... Bxe5 {[%clk 0:00:41.3]} 26. Nxe5 {[%clk 0:01:03]} 26...
Qxe5 {[%clk 0:00:42.2]} 27. Bxb6 {[%clk 0:01:03.3]} 27... axb6 {[%clk
0:00:43.1]} 28. Rfd1 {[%clk 0:00:55.5]} 28... Rb8 {[%clk 0:00:22]} 29. Ra7
{[%clk 0:00:52]} 29... Ne4 {[%clk 0:00:19.4]} 30. Qd3 {[%clk 0:00:45.8]} 30...
Nc3 {[%clk 0:00:17.5]} 31. Rc1 {[%clk 0:00:44.4]} 31... Rd8 {[%clk 0:00:14.1]}
32. Qxc3 {[%clk 0:00:39.8]} 32... Rd1+ {[%clk 0:00:14]} 33. Bf1 {[%clk
0:00:40.1]} 33... Qd6 {[%clk 0:00:05.9]} 34. Ra8 {[%clk 0:00:31.6]} 34... Kf8
{[%clk 0:00:05.4]} 35. Rxd1 {[%clk 0:00:28.5]} 35... Qxd1 {[%clk 0:00:06.3]} 36.
h3 {[%clk 0:00:25.2]} 36... Qf3 {[%clk 0:00:03.9]} 37. Rd8 {[%clk 0:00:21.1]}
37... Qg3+ {[%clk 0:00:03.5]} 38. Bg2 {[%clk 0:00:21.1]} 38... Ke7 {[%clk
0:00:03.6]} 39. Qd2 {[%clk 0:00:19.2]} 39... Kf6 {[%clk 0:00:02.1]} 40. Qf2+
{[%clk 0:00:18.1]} 40... Qxf2+ {[%clk 0:00:02]} 41. Kxf2 {[%clk 0:00:19]} 41...
Ke7 {[%clk 0:00:02.7]} 42. Rb8 {[%clk 0:00:19.1]} 42... Bxb5 {[%clk 0:00:01.5]}
43. cxb5 {[%clk 0:00:17.7]} 1-0

[Event "*** Titled Tuesday Blitz"]
[Site "Chess.com"]
[Date "2020.05.12"]
[Round "7"]
[White "snowlord"]
[Black "Aikiigm"]
[Result "1-0"]
[WhiteElo "2744"]
[BlackElo "2493"]
[TimeControl "180+1"]
[EndTime "11:16:52 PDT"]
[Termination "snowlord won by resignation"]

1. d4 {[%clk 0:02:01.7]} 1... Nf6 {[%clk 0:02:56.1]} 2. c4 {[%clk 0:02:01]} 2...
c6 {[%clk 0:02:56]} 3. Bf4 {[%clk 0:01:58.9]} 3... d5 {[%clk 0:02:56.9]} 4. e3
{[%clk 0:01:58.2]} 4... Bf5 {[%clk 0:02:56.2]} 5. Nc3 {[%clk 0:01:57.7]} 5...
Nbd7 {[%clk 0:02:53.2]} 6. Qb3 {[%clk 0:01:57.7]} 6... Qb6 {[%clk 0:02:51.4]} 7.
c5 {[%clk 0:01:57.2]} 7... Qxb3 {[%clk 0:02:50.7]} 8. axb3 {[%clk 0:01:58.1]}
8... a6 {[%clk 0:02:50.8]} 9. b4 {[%clk 0:01:57.4]} 9... Rc8 {[%clk 0:02:50.5]}
10. h3 {[%clk 0:01:57.9]} 10... e6 {[%clk 0:02:50.6]} 11. Nf3 {[%clk 0:01:58.1]}
11... Be7 {[%clk 0:02:51.1]} 12. Nd2 {[%clk 0:01:58.2]} 12... Bd8 {[%clk
0:02:51.7]} 13. Nb3 {[%clk 0:01:57.3]} 13... Bc7 {[%clk 0:02:52.2]} 14. Bxc7
{[%clk 0:01:42.1]} 14... Rxc7 {[%clk 0:02:52.3]} 15. f4 {[%clk 0:01:42.5]} 15...
h5 {[%clk 0:02:51.6]} 16. Kd2 {[%clk 0:01:05]} 16... Ne4+ {[%clk 0:02:50.4]} 17.
Kc1 {[%clk 0:00:57.2]} 17... h4 {[%clk 0:02:49.3]} 18. Be2 {[%clk 0:00:54.4]}
18... Ke7 {[%clk 0:02:48.5]} 19. Re1 {[%clk 0:00:54.1]} 19... f6 {[%clk
0:02:48.4]} 20. Bf3 {[%clk 0:00:54.2]} 20... g5 {[%clk 0:02:44.4]} 21. Bxe4
{[%clk 0:00:50]} 21... Bxe4 {[%clk 0:02:43.3]} 22. Nxe4 {[%clk 0:00:47.4]} 22...
dxe4 {[%clk 0:02:42.6]} 23. fxg5 {[%clk 0:00:42.6]} 23... fxg5 {[%clk
0:02:41.9]} 24. Nd2 {[%clk 0:00:41.4]} 24... Nf6 {[%clk 0:02:41.2]} 25. Kc2
{[%clk 0:00:36.7]} 25... Rcc8 {[%clk 0:02:34.7]} 26. Kb3 {[%clk 0:00:36.9]}
26... Rhg8 {[%clk 0:02:29.7]} 27. Rf1 {[%clk 0:00:37.1]} 27... Rcf8 {[%clk
0:02:15.2]} 28. Rae1 {[%clk 0:00:22.4]} 28... g4 {[%clk 0:02:14.4]} 29. Rf4
{[%clk 0:00:22.2]} 29... gxh3 {[%clk 0:02:13.9]} 30. gxh3 {[%clk 0:00:23.1]}
30... Rg3 {[%clk 0:02:12.3]} 31. Rxh4 {[%clk 0:00:20.1]} 31... Nd5 {[%clk
0:02:10]} 32. Rxe4 {[%clk 0:00:19.4]} 32... Rxh3 {[%clk 0:02:07.9]} 33. Nc4
{[%clk 0:00:19.6]} 33... Rf2 {[%clk 0:02:06.3]} 34. Rg4 {[%clk 0:00:17.9]} 34...
Kf6 {[%clk 0:02:01]} 35. Rg8 {[%clk 0:00:17.7]} 35... Rh7 {[%clk 0:01:20.6]} 36.
Rf8+ {[%clk 0:00:17.1]} 36... Rf7 {[%clk 0:01:19.9]} 37. Rxf7+ {[%clk 0:00:17]}
37... Kxf7 {[%clk 0:01:20.2]} 38. e4 {[%clk 0:00:15.4]} 38... Rf3+ {[%clk
0:01:17.8]} 39. Ka4 {[%clk 0:00:15.2]} 39... Rf2 {[%clk 0:00:57.4]} 40. exd5
{[%clk 0:00:14.6]} 40... exd5 {[%clk 0:00:53.9]} 41. Nd6+ {[%clk 0:00:14.3]}
41... Kf6 {[%clk 0:00:52.6]} 42. Ka5 {[%clk 0:00:14.8]} 42... Rxb2 {[%clk
0:00:51.4]} 43. Re8 {[%clk 0:00:14]} 43... Rd2 {[%clk 0:00:46.6]} 44. Kb6 {[%clk
0:00:13.1]} 44... Rxd4 {[%clk 0:00:47.5]} 45. Kxb7 {[%clk 0:00:13.4]} 45...
Rxb4+ {[%clk 0:00:47.5]} 46. Kxc6 {[%clk 0:00:14]} 46... d4 {[%clk 0:00:48.2]}
47. Re4 {[%clk 0:00:12.3]} 47... a5 {[%clk 0:00:47.1]} 48. Rf4+ {[%clk
0:00:11.7]} 48... Ke5 {[%clk 0:00:46.6]} 49. Rf5+ {[%clk 0:00:10.8]} 49... Ke6
{[%clk 0:00:44.9]} 50. Rf1 {[%clk 0:00:11.7]} 50... d3 {[%clk 0:00:44.5]} 51.
Re1+ {[%clk 0:00:12.6]} 51... Kf6 {[%clk 0:00:42.5]} 52. Kd5 {[%clk 0:00:13.5]}
52... a4 {[%clk 0:00:42.1]} 53. c6 {[%clk 0:00:12.3]} 53... d2 {[%clk
0:00:39.4]} 54. Rd1 {[%clk 0:00:12.5]} 54... Rb2 {[%clk 0:00:40.1]} 55. c7
{[%clk 0:00:11.5]} 55... Rc2 {[%clk 0:00:40.5]} 56. c8=Q {[%clk 0:00:11.3]}
56... Rxc8 {[%clk 0:00:39.9]} 57. Nxc8 {[%clk 0:00:12.2]} 1-0

[Event "*** Titled Tuesday Blitz"]
[Site "Chess.com"]
[Date "2020.05.12"]
[Round "7"]
[White "Natalya_Buksa"]
[Black "Chichin_chao"]
[Result "1-0"]
[WhiteElo "2522"]
[BlackElo "2358"]
[TimeControl "180+1"]
[EndTime "11:16:52 PDT"]
[Termination "Natalya_Buksa won on time"]

1. d4 {[%clk 0:03:00.9]} 1... Nf6 {[%clk 0:02:59.4]} 2. Nc3 {[%clk 0:03:01]}
2... d6 {[%clk 0:02:53.9]} 3. e4 {[%clk 0:03:00.8]} 3... Nbd7 {[%clk 0:02:54.1]}
4. Nf3 {[%clk 0:03:00.1]} 4... e5 {[%clk 0:02:54.6]} 5. Bc4 {[%clk 0:02:53.5]}
5... Be7 {[%clk 0:02:53.9]} 6. O-O {[%clk 0:02:53.1]} 6... O-O {[%clk
0:02:53.3]} 7. Re1 {[%clk 0:02:53.6]} 7... exd4 {[%clk 0:02:50.1]} 8. Nxd4
{[%clk 0:02:53]} 8... Re8 {[%clk 0:02:50.5]} 9. a4 {[%clk 0:02:49.9]} 9... Bf8
{[%clk 0:02:50.4]} 10. Bg5 {[%clk 0:02:47.2]} 10... h6 {[%clk 0:02:46.5]} 11.
Bh4 {[%clk 0:02:46.1]} 11... Ne5 {[%clk 0:02:44.3]} 12. Bd3 {[%clk 0:02:43.8]}
12... c6 {[%clk 0:02:26.6]} 13. h3 {[%clk 0:02:37.9]} 13... Ng6 {[%clk
0:02:05.5]} 14. Bg3 {[%clk 0:02:31.3]} 14... Qb6 {[%clk 0:02:05.9]} 15. Nb3
{[%clk 0:02:29.5]} 15... a5 {[%clk 0:02:05.3]} 16. Qd2 {[%clk 0:02:20.7]} 16...
Be6 {[%clk 0:02:03.3]} 17. Qd1 {[%clk 0:01:56]} 17... Rac8 {[%clk 0:01:57.2]}
18. Rb1 {[%clk 0:01:54.7]} 18... Rcd8 {[%clk 0:01:52.5]} 19. Nd2 {[%clk
0:01:53.8]} 19... d5 {[%clk 0:01:50.2]} 20. e5 {[%clk 0:01:52.4]} 20... Nd7
{[%clk 0:01:47.7]} 21. Nf3 {[%clk 0:01:46.8]} 21... Bb4 {[%clk 0:01:40.7]} 22.
Bxg6 {[%clk 0:01:40.3]} 22... fxg6 {[%clk 0:01:40.1]} 23. Nd4 {[%clk 0:01:38.1]}
23... Nf8 {[%clk 0:01:34.7]} 24. Qd3 {[%clk 0:01:34.5]} 24... c5 {[%clk
0:00:43.6]} 25. Nxe6 {[%clk 0:01:33.1]} 25... Qxe6 {[%clk 0:00:44.5]} 26. Re2
{[%clk 0:01:25.6]} 26... d4 {[%clk 0:00:30.4]} 27. Ne4 {[%clk 0:01:18.5]} 27...
c4 {[%clk 0:00:30.4]} 28. Qf3 {[%clk 0:01:09.3]} 28... d3 {[%clk 0:00:28.2]} 29.
cxd3 {[%clk 0:01:07.9]} 29... cxd3 {[%clk 0:00:29.1]} 30. Re3 {[%clk 0:01:03.8]}
30... Qa2 {[%clk 0:00:17.4]} 31. Rd1 {[%clk 0:01:03.4]} 31... d2 {[%clk
0:00:14.1]} 32. Rd3 {[%clk 0:00:40.4]} 32... Qxa4 {[%clk 0:00:10.9]} 33. b3
{[%clk 0:00:38.2]} 33... Qc6 {[%clk 0:00:07.4]} 34. Nxd2 {[%clk 0:00:29.9]}
34... Rxd3 {[%clk 0:00:03]} 35. Qxd3 {[%clk 0:00:29.3]} 35... Ne6 {[%clk
0:00:01.5]} 36. Nc4 {[%clk 0:00:25.2]} 36... Nf8 {[%clk 0:00:01.4]} 37. Nd6
{[%clk 0:00:21.9]} 37... Re7 {[%clk 0:00:01.4]} 38. Kh2 {[%clk 0:00:20.4]} 38...
Kh7 {[%clk 0:00:01.1]} 39. Bf4 {[%clk 0:00:20.1]} 39... Ne6 {[%clk 0:00:01]} 40.
Bg3 {[%clk 0:00:18.1]} 40... Nc5 {[%clk 0:00:01.2]} 41. Qc4 {[%clk 0:00:16.7]}
1-0

[Event "*** Titled Tuesday Blitz"]
[Site "Chess.com"]
[Date "2020.05.12"]
[Round "7"]
[White "Ashedu66"]
[Black "Kopytkin"]
[Result "0-1"]
[WhiteElo "2131"]
[BlackElo "2344"]
[TimeControl "180+1"]
[EndTime "11:16:52 PDT"]
[Termination "Kopytkin won on time"]

1. d4 {[%clk 0:03:00.9]} 1... d5 {[%clk 0:02:58.1]} 2. c4 {[%clk 0:03:00.8]}
2... Bf5 {[%clk 0:02:58.1]} 3. cxd5 {[%clk 0:02:58.9]} 3... Nf6 {[%clk
0:02:57.8]} 4. Nc3 {[%clk 0:02:50.3]} 4... Nxd5 {[%clk 0:02:56.6]} 5. f3 {[%clk
0:02:48.5]} 5... Nxc3 {[%clk 0:02:49.3]} 6. bxc3 {[%clk 0:02:47.9]} 6... c5
{[%clk 0:02:38.6]} 7. e4 {[%clk 0:02:46.8]} 7... Bd7 {[%clk 0:02:38.7]} 8. Be3
{[%clk 0:02:18.7]} 8... g6 {[%clk 0:02:38.1]} 9. Bc4 {[%clk 0:02:07.7]} 9... Bg7
{[%clk 0:02:37.8]} 10. Ne2 {[%clk 0:01:54]} 10... O-O {[%clk 0:02:37.7]} 11. O-O
{[%clk 0:01:53.5]} 11... Nc6 {[%clk 0:02:38.2]} 12. Rb1 {[%clk 0:01:31.6]} 12...
Qc7 {[%clk 0:02:36.6]} 13. Bd3 {[%clk 0:01:19]} 13... Rfd8 {[%clk 0:02:35.1]}
14. Nf4 {[%clk 0:01:03]} 14... e6 {[%clk 0:02:27.8]} 15. d5 {[%clk 0:00:40.6]}
15... Na5 {[%clk 0:01:53.3]} 16. c4 {[%clk 0:00:35.8]} 16... b6 {[%clk
0:01:34.5]} 17. Qc1 {[%clk 0:00:27.8]} 17... Nb7 {[%clk 0:01:32.8]} 18. Be2
{[%clk 0:00:21.8]} 18... e5 {[%clk 0:01:32.7]} 19. Nd3 {[%clk 0:00:20.6]} 19...
Nd6 {[%clk 0:01:33.2]} 20. Nf2 {[%clk 0:00:18.7]} 20... f5 {[%clk 0:01:29.8]}
21. f4 {[%clk 0:00:16.5]} 21... Nxe4 {[%clk 0:01:20]} 22. Nxe4 {[%clk
0:00:15.9]} 22... fxe4 {[%clk 0:01:20.5]} 23. Qd1 {[%clk 0:00:12.9]} 23... Qd6
{[%clk 0:01:13.8]} 24. Bg4 {[%clk 0:00:11.7]} 24... Rf8 {[%clk 0:01:05.8]} 25.
Bxd7 {[%clk 0:00:11.1]} 25... Qxd7 {[%clk 0:01:06.7]} 26. fxe5 {[%clk
0:00:10.4]} 26... Bxe5 {[%clk 0:01:06.5]} 27. Qc2 {[%clk 0:00:10.3]} 27... Qg4
{[%clk 0:01:00.7]} 28. Rbe1 {[%clk 0:00:09.4]} 28... Rf5 {[%clk 0:00:55.3]} 29.
Rxf5 {[%clk 0:00:08.6]} 29... gxf5 {[%clk 0:00:54.8]} 30. Qf2 {[%clk 0:00:08.1]}
30... Rf8 {[%clk 0:00:52.9]} 31. g3 {[%clk 0:00:07.2]} 31... h5 {[%clk 0:00:52]}
32. Bd2 {[%clk 0:00:06.3]} 32... h4 {[%clk 0:00:43.4]} 33. Bf4 {[%clk
0:00:05.6]} 33... Bd4 {[%clk 0:00:42.9]} 34. Be3 {[%clk 0:00:04.4]} 34... hxg3
{[%clk 0:00:35.1]} 35. Qxg3 {[%clk 0:00:03.5]} 35... Qxg3+ {[%clk 0:00:25.9]}
36. hxg3 {[%clk 0:00:03.5]} 36... Kg7 {[%clk 0:00:25.6]} 37. Kg2 {[%clk
0:00:02.2]} 37... Kf6 {[%clk 0:00:25.4]} 38. Bf4 {[%clk 0:00:02.2]} 38... Be5
{[%clk 0:00:22.3]} 39. Rh1 {[%clk 0:00:01.7]} 39... Bxf4 {[%clk 0:00:20]} 40.
gxf4 {[%clk 0:00:02]} 40... Rg8+ {[%clk 0:00:19.8]} 41. Kf2 {[%clk 0:00:02.2]}
41... Rg4 {[%clk 0:00:15.3]} 0-1